fUSD/lending_fUSD_20251013
["ID","MTS","AMOUNT","RATE_DAILY","PERIOD"]
[391093429,1760328638269,-195.0,0.00014542,2]
[391093430,1760328638279,-2500.0,0.00014542,2]
[391093431,1760328638288,-2500.0,0.00014542,2]
[391093432,1760328638299,-2500.0,0.00014542,2]
[391093433,1760328638311,-2500.0,0.00014542,2]
[391093434,1760328638321,-2531.47579326,0.00014542,2]
[391093435,1760328638330,-300.0,0.00014542,2]
[391093436,1760328638339,-300.0,0.00014542,2]
[391093437,1760328638349,-4.61247476,0.00014542,2]
[391093438,1760328638377,-295.38752524,0.00014542,2]
[391093439,1760328638386,-175.24274901,0.00014542,2]
[391093482,1760328640170,-1824.75725099,0.00014542,2]
[391093483,1760328640180,-300.0,0.00014542,2]
[391093484,1760328640190,-313.46581895,0.00014542,2]
[391093485,1760328640199,-250.0,0.00014542,2]
[391093486,1760328640208,-2000.0,0.00014542,2]
[391093487,1760328640219,-195.0,0.00014588,2]
[391093488,1760328640228,-250.0,0.00014588,2]
[391093489,1760328640238,-2000.0,0.00014588,2]
[391093490,1760328640247,-11878.85235123,0.00014595,2]
[391093491,1760328640256,-1000.0,0.000146,2]
[391093492,1760328640265,-272.93255438,0.00014639,2]
[391093493,1760328640275,-12318.36988823,0.0001465,2]
[391093494,1760328640285,-440.52848607,0.00014661,2]
[391093495,1760328640294,-322.6107,0.00014662,2]
[391093496,1760328640307,-695.39793187,0.00014662,2]
[391093497,1760328640316,-160.0,0.00014662,2]
[391093498,1760328640326,-151.0,0.00014662,2]
[391093499,1760328640335,-2000.0,0.00014662,2]
[391093500,1760328640345,-151.0,0.00014662,2]
[391093501,1760328640355,-175.44720201,0.00014662,2]
[391093502,1760328640364,-2000.0,0.00014662,2]
[391093503,1760328640373,-2000.0,0.00014662,2]
[391093504,1760328640385,-2000.0,0.00014662,2]
[391093505,1760328640394,-500.0,0.00014662,2]
[391093506,1760328640404,-500.0,0.00014662,2]
[391093507,1760328640413,-2000.0,0.00014662,2]
[391093508,1760328640422,-500.0,0.00014662,2]
[391093509,1760328640432,-2000.0,0.00014662,2]
[391093510,1760328640441,-1000.0,0.00014662,2]
[391093511,1760328640450,-2000.0,0.00014662,2]
[391093512,1760328640459,-500.0,0.00014662,2]
[391093513,1760328640469,-1000.0,0.00014662,2]
[391093514,1760328640478,-2000.0,0.00014662,2]
[391093515,1760328640487,-500.0,0.00014662,2]
[391093516,1760328640496,-1000.0,0.00014662,2]
[391093517,1760328640505,-500.0,0.00014662,2]
[391093518,1760328640513,-2000.0,0.00014662,2]
[391093519,1760328640522,-1000.0,0.00014662,2]
[391093520,1760328640532,-2000.0,0.00014662,2]
[391093521,1760328640541,-500.0,0.00014662,2]
[391093522,1760328640550,-220.0,0.00014662,2]
[391093523,1760328640559,-1000.0,0.00014662,2]
[391093524,1760328640568,-2000.0,0.00014662,2]
[391093525,1760328640577,-500.0,0.00014662,2]
[391093526,1760328640586,-234.05915284,0.00014662,2]
[391093527,1760328640595,-1000.0,0.00014662,2]
[391093528,1760328640603,-2000.0,0.00014662,2]
[391093529,1760328640612,-500.0,0.00014662,2]
[391093530,1760328640621,-1000.0,0.00014662,2]
[391093531,1760328640631,-500.0,0.00014662,2]
[391093532,1760328640640,-1000.0,0.00014662,2]
[391093533,1760328640650,-500.0,0.00014662,2]
[391093534,1760328640659,-1000.0,0.00014662,2]
[391093535,1760328640667,-2000.0,0.00014662,2]
[391093536,1760328640676,-500.0,0.00014662,2]
[391093537,1760328640686,-1000.0,0.00014662,2]
[391093538,1760328640695,-2000.0,0.00014662,2]
[391093539,1760328640704,-1000.0,0.00014662,2]
[391093540,1760328640714,-2000.0,0.00014662,2]
[391093541,1760328640724,-1000.0,0.00014662,2]
[391093542,1760328640734,-2000.0,0.00014662,2]
[391093543,1760328640744,-1000.0,0.00014662,2]
[391093544,1760328640753,-2000.0,0.00014662,2]
[391093545,1760328640762,-2000.0,0.00014662,2]
[391093546,1760328640772,-1000.0,0.00014662,2]
[391093547,1760328640781,-2000.0,0.00014662,2]
[391093548,1760328640790,-200.0,0.00014662,2]
[391093549,1760328640800,-2000.0,0.00014662,2]
[391093550,1760328640810,-500.0,0.00014662,2]
[391093551,1760328640819,-2000.0,0.00014662,2]
[391093552,1760328640828,-1000.0,0.00014662,2]
[391093553,1760328640837,-2000.0,0.00014662,2]
[391093554,1760328640846,-488.9800685,0.00014662,2]
[391093555,1760328640858,-405.80185851,0.00014662,2]
[391093556,1760328640867,-2000.0,0.00014662,2]
[391093557,1760328640876,-2000.0,0.00014662,2]
[391093558,1760328640885,-2000.0,0.00014662,2]
[391093559,1760328640894,-2000.0,0.00014662,2]
[391093560,1760328640903,-2000.0,0.00014662,2]
[391093561,1760328640912,-2000.0,0.00014662,2]
[391093562,1760328640921,-500.0,0.00014662,2]
[391093563,1760328640930,-151.0,0.00014662,2]
[391093564,1760328640939,-2000.0,0.00014662,2]
[391093565,1760328640948,-2000.0,0.00014662,2]
[391093566,1760328640957,-500.0,0.00014662,2]
[391093567,1760328640966,-2000.0,0.00014662,2]
[391093568,1760328640977,-2000.0,0.00014662,2]
[391093569,1760328640986,-500.0,0.00014662,2]
[391093570,1760328640995,-2000.0,0.00014662,2]
[391093571,1760328641004,-500.0,0.00014662,2]
[391093572,1760328641013,-2000.0,0.00014662,2]
[391093573,1760328641022,-517.17839767,0.00014662,2]
[391093574,1760328641031,-2000.0,0.00014662,2]
[391093575,1760328641040,-1000.0,0.00014662,2]
[391093576,1760328641050,-2000.0,0.00014662,2]
[391093577,1760328641060,-1000.0,0.00014662,2]
[391093578,1760328641069,-1000.0,0.00014662,2]
[391093579,1760328641078,-500.0,0.00014662,2]
[391093580,1760328641088,-417.65184803,0.00014662,2]
[391093581,1760328641097,-1000.0,0.00014662,2]
[391093582,1760328641107,-500.0,0.00014662,2]
[391093583,1760328641118,-1000.0,0.00014662,2]
[391093584,1760328641128,-1000.0,0.00014662,2]
[391093585,1760328641137,-837.60560396,0.00014662,2]
[391093586,1760328641147,-250.0,0.00014662,2]
[391093587,1760328641156,-200.0,0.00014662,2]
[391093588,1760328641165,-250.0,0.00014662,2]
[391093589,1760328641174,-250.0,0.00014662,2]
[391093590,1760328641183,-250.0,0.00014662,2]
[391093591,1760328641192,-250.0,0.00014662,2]
[391093592,1760328641201,-250.0,0.00014662,2]
[391093593,1760328641211,-250.0,0.00014662,2]
[391093594,1760328641220,-250.0,0.00014662,2]
[391093595,1760328641229,-250.0,0.00014662,2]
[391093596,1760328641238,-250.0,0.00014662,2]
[391093597,1760328641248,-500.0,0.00014662,2]
[391093598,1760328641258,-250.0,0.00014662,2]
[391093599,1760328641270,-500.0,0.00014662,2]
[391093600,1760328641280,-162.79438484,0.00014662,2]
[391093601,1760328641290,-500.0,0.00014662,2]
[391093602,1760328641301,-500.0,0.00014662,2]
[391093603,1760328641313,-500.0,0.00014662,2]
[391093604,1760328641324,-500.0,0.00014662,2]
[391093605,1760328641333,-500.0,0.00014662,2]
[391093606,1760328641344,-500.0,0.00014662,2]
[391093607,1760328641353,-508.05836501,0.00014662,2]
[391093608,1760328641364,-847.10882333,0.00014669,2]
[391093609,1760328641374,-1910.48641707,0.0001467,2]
[391093610,1760328641384,-1000.0,0.0001467,2]
[391093611,1760328641395,-2500.0,0.0001467,2]
[391093612,1760328641404,-151.0,0.00014677,2]
[391093613,1760328641414,-33401.4818,0.0001468,2]
[391093614,1760328641425,-1000.0,0.0001468,2]
[391093615,1760328641435,-177.67575073,0.00014681,2]
[391093616,1760328641445,-14072.31916589,0.00014688,2]
[391093617,1760328641455,-1051.78551248,0.00014699,2]
[391093618,1760328641466,-12774.14957409,0.00014705,2]
[391093619,1760328641476,-16318.24959264,0.00014739,2]
[391093620,1760328641485,-151.0,0.00014758,2]
[391093621,1760328641495,-13246.79310833,0.0001476,2]
[391093622,1760328641506,-500.0,0.00014773,2]
[391093623,1760328641516,-500.0,0.00014773,2]
[391093624,1760328641527,-500.0,0.00014773,2]
[391093625,1760328641537,-500.0,0.00014773,2]
[391093626,1760328641546,-500.44756368,0.00014773,2]
[391093627,1760328641555,-500.0,0.00014773,2]
[391093628,1760328641564,-500.0,0.00014773,2]
[391093629,1760328641573,-500.0,0.00014773,2]
[391093630,1760328641582,-500.0,0.00014773,2]
[391093631,1760328641592,-151.0,0.00014776,2]
[391093632,1760328641602,-192465.6248,0.00014779,2]
[391093633,1760328641611,-1962.0,0.00014788,2]
[391093634,1760328641624,-13736.92445334,0.00014815,2]
[391093635,1760328641636,-18792.08638005,0.0001485,2]
[391093636,1760328641648,-1221.46515,0.0001485,2]
[391093637,1760328641659,-500.0,0.00014873,2]
[391093638,1760328641669,-1478.909,0.00014879,2]
[391093639,1760328641682,-1000.0,0.00014879,2]
[391093640,1760328641693,-880.687,0.00014879,2]
[391093641,1760328641704,-112283.40019768,0.0001488,2]
[391093642,1760328641715,-200.0,0.0001488,2]
[391093643,1760328641726,-319.22305104,0.000149,2]
[391093644,1760328641735,-155.17195684,0.000149,2]
[391093645,1760328641744,-267.97205602,0.000149,2]
[391093646,1760328641754,-2638.04086454,0.00014927,2]
[391093647,1760328641764,-500.0,0.00014973,2]
[391093648,1760328641773,-168.19426073,0.00014973,2]
[391093649,1760328641782,-500.32238994,0.00014973,2]
[391093650,1760328641791,-500.0,0.00014973,2]
[391093651,1760328641801,-500.0,0.00014973,2]
[391093652,1760328641810,-500.67213646,0.00014973,2]
[391093653,1760328641819,-500.0,0.00014973,2]
[391093654,1760328641829,-500.0,0.00014973,2]
[391093655,1760328641838,-500.0,0.00014973,2]
[391093656,1760328641847,-500.0,0.00014973,2]
[391093657,1760328641856,-500.0,0.00014973,2]
[391093658,1760328641866,-500.09875659,0.00014973,2]
[391093659,1760328641875,-500.0,0.00014973,2]
[391093660,1760328641885,-522.32690033,0.00014973,2]
[391093661,1760328641894,-560.33339262,0.00014973,2]
[391093662,1760328641904,-500.0,0.00014973,2]
[391093663,1760328641913,-500.0,0.00014973,2]
[391093664,1760328641922,-500.11519838,0.00014973,2]
[391093665,1760328641931,-500.44343299,0.00014973,2]
[391093666,1760328641941,-500.25232784,0.00014973,2]
[391093667,1760328641951,-1910.48641701,0.00014981,2]
[391093668,1760328641962,-244.8986266,0.0001499,2]
[391093669,1760328641971,-244.8986266,0.0001499,2]
[391093670,1760328641981,-151.0,0.00014995,2]
[391093671,1760328641991,-279.90735855,0.00014997,2]
[391093672,1760328642003,-47564.7739091,0.00014997,2]
[391093673,1760328642306,-195.08041477,0.00014997,2]
[391093674,1760328642317,-500.0,0.00014997,2]
[391093675,1760328642327,-449.29471595,0.00014997,2]
[391093676,1760328642338,-500.0,0.00014997,2]
[391093677,1760328642349,-500.0,0.00014997,2]
[391093678,1760328642359,-295.97569613,0.00014997,2]
[391093679,1760328642369,-220.62380701,0.00014997,2]
[391093680,1760328642383,-500.0,0.00014997,2]
[391093681,1760328642393,-500.0,0.00014997,2]
[391093682,1760328642403,-500.0,0.00014997,2]
[391093683,1760328642415,-397.90324711,0.00014997,2]
[391093684,1760328642426,-1025.8319694,0.00014997,2]
[391093685,1760328642436,-132195.5625883,0.00014998,2]
[391093686,1760328642446,-1173.5471957,0.00014998,2]
[391093687,1760328642456,-151.0,0.00014998,2]
[391093688,1760328642465,-151.0,0.00014998,2]
[391093689,1760328642475,-1325.417125,0.00014998,2]
[391093690,1760328642485,-1325.417125,0.00014998,2]
[391093691,1760328642494,-1325.417125,0.00014998,2]
[391093692,1760328642503,-362.997206,0.00014998,2]
[391093693,1760328642513,-1325.417125,0.00014998,2]
[391093694,1760328642523,-362.997206,0.00014998,2]
[391093695,1760328642533,-362.997206,0.00014998,2]
[391093696,1760328642545,-362.997206,0.00014998,2]
[391093697,1760328642555,-158.689445,0.00014998,2]
[391093698,1760328642566,-151.0,0.00014998,2]
[391093699,1760328642575,-158.689445,0.00014998,2]
[391093700,1760328642584,-214.746716,0.00014998,2]
[391093701,1760328642593,-244.709131,0.00014998,2]
[391093702,1760328642602,-151.0,0.00014998,2]
[391093703,1760328642613,-158.689445,0.00014998,2]
[391093704,1760328642621,-214.746716,0.00014998,2]
[391093705,1760328642630,-244.709131,0.00014998,2]
[391093706,1760328642639,-1109.65868,0.00014998,2]
[391093707,1760328642648,-451.436667,0.00014998,2]
[391093708,1760328642657,-158.689445,0.00014998,2]
[391093709,1760328642667,-214.746716,0.00014998,2]
[391093710,1760328642676,-151.0,0.00014998,2]
[391093711,1760328642685,-244.709131,0.00014998,2]
[391093712,1760328642695,-451.436667,0.00014998,2]
[391093713,1760328642704,-214.746716,0.00014998,2]
[391093714,1760328642713,-244.709131,0.00014998,2]
[391093715,1760328642722,-151.0,0.00014998,2]
[391093716,1760328642732,-451.436667,0.00014998,2]
[391093717,1760328642741,-151.0,0.00014998,2]
[391093718,1760328642750,-151.0,0.00014998,2]
[391093719,1760328642760,-151.0,0.00014998,2]
[391093720,1760328642769,-451.436667,0.00014998,2]
[391093721,1760328642779,-159.173446,0.00014998,2]
[391093722,1760328642788,-423.551431,0.00014998,2]
[391093723,1760328642797,-1109.65868,0.00014998,2]
[391093724,1760328642809,-151.0,0.00014998,2]
[391093725,1760328642820,-151.0,0.00014998,2]
[391093726,1760328642829,-7732.411317,0.00014998,2]
[391093727,1760328642838,-159.173446,0.00014998,2]
[391093728,1760328642848,-423.551431,0.00014998,2]
[391093729,1760328642857,-1109.65868,0.00014998,2]
[391093730,1760328642867,-7732.411317,0.00014998,2]
[391093731,1760328642876,-198.224621,0.00014998,2]
[391093732,1760328642885,-159.173446,0.00014998,2]
[391093733,1760328642895,-423.551431,0.00014998,2]
[391093734,1760328642904,-151.0,0.00014998,2]
[391093735,1760328642914,-1109.65868,0.00014998,2]
[391093736,1760328642923,-151.0,0.00014998,2]
[391093737,1760328642932,-7732.411317,0.00014998,2]
[391093738,1760328642941,-198.224621,0.00014998,2]
[391093739,1760328642950,-159.173446,0.00014998,2]
[391093740,1760328642959,-423.551431,0.00014998,2]
[391093741,1760328642969,-151.0,0.00014998,2]
[391093742,1760328642978,-332.711273,0.00014998,2]
[391093743,1760328642987,-198.224621,0.00014998,2]
[391093744,1760328642999,-7732.411317,0.00014998,2]
[391093745,1760328643012,-332.711273,0.00014998,2]
[391093746,1760328643022,-198.224621,0.00014998,2]
[391093748,1760328643031,-332.711273,0.00014998,2]
[391093749,1760328643041,-151.0,0.00014998,2]
[391093750,1760328643061,-750.345379,0.00014998,2]
[391093751,1760328643071,-151.0,0.00014998,2]
[391093752,1760328643081,-151.0,0.00014998,2]
[391093753,1760328643091,-750.345379,0.00014998,2]
[391093754,1760328643100,-332.711273,0.00014998,2]
[391093755,1760328643109,-151.0,0.00014998,2]
[391093756,1760328643119,-151.0,0.00014998,2]
[391093757,1760328643128,-151.0,0.00014998,2]
[391093758,1760328643138,-151.0,0.00014998,2]
[391093759,1760328643147,-750.345379,0.00014998,2]
[391093760,1760328643156,-151.0,0.00014998,2]
[391093761,1760328643166,-750.345379,0.00014998,2]
[391093762,1760328643176,-151.0,0.00014998,2]
[391093763,1760328643186,-151.0,0.00014998,2]
[391093764,1760328643195,-151.0,0.00014998,2]
[391093765,1760328643205,-151.0,0.00014998,2]
[391093766,1760328643214,-151.0,0.00014998,2]
[391093767,1760328643224,-151.0,0.00014998,2]
[391093768,1760328643233,-151.0,0.00014998,2]
[391093769,1760328643243,-151.0,0.00014998,2]
[391093770,1760328643253,-151.0,0.00014998,2]
[391093771,1760328643262,-251.177473,0.00014998,2]
[391093772,1760328643272,-219.113782,0.00014998,2]
[391093773,1760328643281,-2272.413587,0.00014998,2]
[391093774,1760328643291,-151.0,0.00014998,2]
[391093775,1760328643304,-251.177473,0.00014998,2]
[391093776,1760328643313,-219.113782,0.00014998,2]
[391093777,1760328643323,-251.177473,0.00014998,2]
[391093778,1760328643333,-2272.413587,0.00014998,2]
[391093779,1760328643343,-219.113782,0.00014998,2]
[391093780,1760328643352,-251.177473,0.00014998,2]
[391093781,1760328643362,-219.113782,0.00014998,2]
[391093782,1760328643371,-151.0,0.00014998,2]
[391093783,1760328643381,-2272.413587,0.00014998,2]
[391093784,1760328643392,-151.0,0.00014998,2]
[391093785,1760328643402,-9776.267379,0.00014998,2]
[391093786,1760328643411,-2272.413587,0.00014998,2]
[391093787,1760328643420,-9776.267379,0.00014998,2]
[391093788,1760328643430,-9776.267379,0.00014998,2]
[391093789,1760328643439,-151.0,0.00014998,2]
[391093790,1760328643449,-331.277803,0.00014998,2]
[391093791,1760328643459,-9776.267379,0.00014998,2]
[391093792,1760328643469,-151.0,0.00014998,2]
[391093793,1760328643479,-331.277803,0.00014998,2]
[391093794,1760328643489,-491.325993,0.00014998,2]
[391093795,1760328643498,-151.0,0.00014998,2]
[391093796,1760328643510,-151.0,0.00014998,2]
[391093797,1760328643523,-248.155206,0.00014998,2]
[391093798,1760328643533,-331.277803,0.00014998,2]
[391093799,1760328643543,-491.325993,0.00014998,2]
[391093800,1760328643553,-230.38118,0.00014998,2]
[391093801,1760328643563,-248.155206,0.00014998,2]
[391093802,1760328643572,-331.277803,0.00014998,2]
[391093803,1760328643581,-491.325993,0.00014998,2]
[391093804,1760328643591,-248.155206,0.00014998,2]
[391093805,1760328643601,-491.325993,0.00014998,2]
[391093806,1760328643610,-248.155206,0.00014998,2]
[391093807,1760328643619,-552.249586,0.00014998,2]
[391093808,1760328643628,-552.249586,0.00014998,2]
[391093809,1760328643638,-181.986342,0.00014998,2]
[391093810,1760328643647,-151.0,0.00014998,2]
[391093811,1760328643657,-552.249586,0.00014998,2]
[391093812,1760328643666,-181.986342,0.00014998,2]
[391093813,1760328643676,-552.249586,0.00014998,2]
[391093814,1760328643685,-181.986342,0.00014998,2]
[391093815,1760328643695,-151.0,0.00014998,2]
[391093816,1760328643704,-181.986342,0.00014998,2]
[391093817,1760328643714,-310.997959,0.00014998,2]
[391093818,1760328643725,-151.0,0.00014998,2]
[391093819,1760328643735,-187.801295,0.00014998,2]
[391093820,1760328643744,-310.997959,0.00014998,2]
[391093821,1760328643753,-187.801295,0.00014998,2]
[391093822,1760328643763,-310.997959,0.00014998,2]
[391093823,1760328643773,-187.801295,0.00014998,2]
[391093824,1760328643783,-310.997959,0.00014998,2]
[391093825,1760328643792,-187.801295,0.00014998,2]
[391093826,1760328643801,-315.872324,0.00014998,2]
[391093827,1760328643811,-315.872324,0.00014998,2]
[391093828,1760328643821,-315.872324,0.00014998,2]
[391093829,1760328643831,-315.872324,0.00014998,2]
[391093830,1760328643840,-151.0,0.00014998,2]
[391093831,1760328643850,-151.0,0.00014998,2]
[391093832,1760328643859,-151.0,0.00014998,2]
[391093833,1760328643869,-151.0,0.00014998,2]
[391093834,1760328643878,-151.0,0.00014998,2]
[391093835,1760328643888,-151.0,0.00014998,2]
[391093836,1760328643898,-151.0,0.00014998,2]
[391093837,1760328643907,-151.0,0.00014998,2]
[391093838,1760328643916,-151.0,0.00014998,2]
[391093839,1760328643926,-2117.430068,0.00014998,2]
[391093840,1760328643935,-979.447789,0.00014998,2]
[391093841,1760328643944,-2117.430068,0.00014998,2]
[391093842,1760328643954,-979.447789,0.00014998,2]
[391093843,1760328643964,-2117.430068,0.00014998,2]
[391093844,1760328643974,-979.447789,0.00014998,2]
[391093845,1760328643984,-2117.430068,0.00014998,2]
[391093846,1760328643993,-979.447789,0.00014998,2]
[391093847,1760328644002,-489.885137,0.00014998,2]
[391093848,1760328644012,-151.0,0.00014998,2]
[391093849,1760328644021,-151.0,0.00014998,2]
[391093850,1760328644031,-489.885137,0.00014998,2]
[391093851,1760328644040,-151.0,0.00014998,2]
[391093852,1760328644049,-489.885137,0.00014998,2]
[391093853,1760328644059,-151.0,0.00014998,2]
[391093854,1760328644068,-489.885137,0.00014998,2]
[391093855,1760328644077,-151.0,0.00014998,2]
[391093856,1760328644087,-151.964974,0.00014998,2]
[391093857,1760328644096,-151.0,0.00014998,2]
[391093858,1760328644106,-152.21667,0.00014998,2]
[391093859,1760328644115,-541.529147,0.00014998,2]
[391093860,1760328644124,-151.0,0.00014998,2]
[391093861,1760328644133,-541.529147,0.00014998,2]
[391093862,1760328644143,-151.0,0.00014998,2]
[391093863,1760328644152,-15368.70651603,0.00014999,2]
[391093864,1760328644161,-2151.0,0.00014999,2]
[391093865,1760328644171,-264405.80710985,0.00015,2]
[391093866,1760328644189,-4599.0638606,0.00015,2]
[391093867,1760328644200,-234922.93508511,0.00015,2]
[391093868,1760328644215,-434.65539344,0.00015,2]
[391093869,1760328644649,-471.6131243,0.00014998,2]
[391093870,1760328646171,-69.9160227,0.00014998,2]
[391093871,1760328646181,-151.0,0.00014998,2]
[391093872,1760328646191,-1703.189924,0.00014998,2]
[391093873,1760328646200,-541.529147,0.00014998,2]
[391093874,1760328646210,-151.0,0.00014998,2]
[391093875,1760328646219,-170.841485,0.00014998,2]
[391093876,1760328646228,-1703.189924,0.00014998,2]
[391093877,1760328646238,-151.0,0.00014998,2]
[391093878,1760328646247,-170.841485,0.00014998,2]
[391093879,1760328646256,-803.4920123,0.00014998,2]
[391093880,1760328646431,-554.78113426,0.00014998,2]
[391093883,1760328753578,199.14,0.00011155,2]
[391093885,1760328884133,302.0,0.00027397,120]
[391093886,1760328913284,302.0,0.00027397,120]
[391093888,1760329187556,150.0,0.00027397,120]
[391093894,1760329344776,29000.0,0.00027397,120]
[391093895,1760329381576,-379.58505903,0.00013177,3]
[391093896,1760329383682,-163.68745285,0.00013177,3]
[391093897,1760329411202,-201.87147116,0.0001311,2]
[391093898,1760329413684,-349.3596096,0.0001311,2]
[391093900,1760329456272,-104.11652024,0.0001311,2]
[391093901,1760329456295,-376.95153946,0.00013144,2]
[391093903,1760329461150,-167.60418897,0.00013144,2]
[391093904,1760329463290,-194.60254205,0.00013144,2]
[391093905,1760329468208,-457.85196249,0.00013144,2]
[391093906,1760329469590,-376.39664348,0.00013144,2]
[391093907,1760329479700,-231.5249924,0.00013144,2]
[391093908,1760329486320,-195.06813115,0.00013144,2]
[391093909,1760329486345,-38.83512472,0.00013177,3]
[391093912,1760329536331,7541.00963588,9e-05,2]
[391093913,1760329561613,7908.48899128,8e-05,2]
[391093915,1760329621194,-322.88482757,0.00013,5]
[391093916,1760329623815,-154.17167727,0.00013,5]
[391093917,1760329623838,-5.28737015,0.00013177,3]
[391093951,1760329832901,-78.60499325,0.00013177,3]
[391093952,1760329832911,-250.0,0.0001322,2]
[391093953,1760329832920,-84.84207553,0.00013257,2]
[391093954,1760329832931,-2666.15792447,0.00013257,2]
[391093955,1760329832940,-2000.0,0.00013263,2]
[391093956,1760329832950,-2000.0,0.00013392,2]
[391093957,1760329832959,-163.68745285,0.00013422,2]
[391093958,1760329832970,-300.0,0.00013566,2]
[391093959,1760329832981,-300.0,0.00013566,2]
[391093960,1760329832991,-1200.0,0.00013566,2]
[391093961,1760329833001,-300.0,0.00013566,2]
[391093962,1760329833010,-1200.0,0.00013567,2]
[391093963,1760329833020,-277.85819296,0.00013567,2]
[391093964,1760329833029,-3534.53,0.00013568,2]
[391093965,1760329833039,-428.42,0.00013699,2]
[391093966,1760329833049,-2974.19,0.00013795,2]
[391093967,1760329833059,-200.0,0.00013952,2]
[391093968,1760329833068,-948.07,0.00014055,2]
[391093969,1760329833079,-150.0,0.0001414,2]
[391093970,1760329833089,-474.51,0.00014141,2]
[391093971,1760329833099,-474.51,0.00014141,2]
[391093972,1760329833108,-694.86,0.00014141,2]
[391093973,1760329833118,-474.51,0.00014141,2]
[391093974,1760329833127,-694.86,0.00014141,2]
[391093975,1760329833137,-694.86,0.00014141,2]
[391093976,1760329833146,-694.86,0.00014141,2]
[391093977,1760329833155,-694.86,0.00014141,2]
[391093978,1760329833164,-254.21,0.00014141,2]
[391093979,1760329833174,-168.14,0.00014192,2]
[391093980,1760329833183,-413.39,0.00014192,2]
[391093981,1760329833192,-300.81,0.00014192,2]
[391093982,1760329833201,-349.52,0.00014192,2]
[391093983,1760329833211,-545.69,0.00014192,2]
[391093984,1760329833220,-168.14,0.00014192,2]
[391093985,1760329833229,-413.39,0.00014192,2]
[391093986,1760329833239,-824.28,0.00014192,2]
[391093987,1760329833248,-168.14,0.00014192,2]
[391093988,1760329833258,-168.14,0.00014192,2]
[391093989,1760329833267,-167.79,0.00014192,2]
[391093990,1760329833276,-151.0,0.00014212,2]
[391093991,1760329833285,-151.0,0.00014212,2]
[391093992,1760329833295,-151.0,0.00014212,2]
[391093993,1760329833305,-151.0,0.00014212,2]
[391093994,1760329833315,-151.0,0.00014212,2]
[391093995,1760329833324,-246.30222776,0.00014212,2]
[391093996,1760329833333,-9211.34798985,0.00014212,2]
[391093997,1760329833342,-668.65185757,0.00014212,2]
[391093998,1760329833351,-151.0,0.00014212,2]
[391093999,1760329833360,-282.27300607,0.00014212,2]
[391094000,1760329833369,-267.46074303,0.00014212,2]
[391094001,1760329833378,-239.67795966,0.00014212,2]
[391094002,1760329833387,-430.96,0.00014219,2]
[391094003,1760329833397,-150.0,0.00014219,2]
[391094004,1760329833406,-9552.16786547,0.00014267,2]
[391094005,1760329833415,-175.87,0.00014278,2]
[391094006,1760329833423,-546.38,0.00014278,2]
[391094007,1760329833432,-546.38,0.00014278,2]
[391094008,1760329833442,-195.0,0.000143,2]
[391094009,1760329833450,-9081.84131326,0.00014322,2]
[391094010,1760329833463,-823.75676324,0.00014322,2]
[391094011,1760329833472,-166.66,0.00014348,2]
[391094012,1760329833481,-500.0,0.00014373,2]
[391094013,1760329833490,-500.0,0.00014373,2]
[391094014,1760329833499,-500.0,0.00014373,2]
[391094015,1760329833510,-200.0,0.00014374,2]
[391094016,1760329833522,-322.6107,0.00014374,2]
[391094017,1760329833532,-695.39793187,0.00014374,2]
[391094018,1760329833541,-220.0,0.00014374,2]